Cogmind - Beta 13 @@@ ROGUE MODE // 2024.05.22 @ 18:53:15 Player: pakman Result: Destroyed by G-47 Trooper with Particle Gun Performance ------------- Evolutions (2) 1000 Regions Visited (3) 600 Robots Destroyed (52) 260 Value Destroyed (1506) 1506 Prototype IDs (1) 20 Alien Tech Used (0) 0 Bonus (0) 0 TOTAL SCORE: 3386 Bonus ------- None Cogmind --------- Core Integrity 0/550 Matter 300/300 Energy 280/280 System Corruption 0% Temperature Cool (26) Movement Core (350) Ox6 Location -8/Materials Parts ------- > --- POWER (1) -------- Heavy Ion Engine > --- PROPULSION (3) --- (None) > --- UTILITY (4) ------ Medium Storage Unit Signal Interpreter Terrain Scan Processor Transport Network Coupler > --- WEAPON (3) ------- Beam Rifle > --- INVENTORY (10) --- Heavy Ion Engine Light Deuterium Engine Light Nuclear Core Improved Signal Interpreter Improved Utility Shielding Peak State ------------ > --- POWER ------------ Heavy Ion Engine > --- PROPULSION ------- Aluminum Leg VSS Leg > --- UTILITY ---------- Medium Storage Unit Signal Interpreter Terrain Scan Processor Transport Network Coupler > --- WEAPON ----------- Field Laser Heavy Particle Cannon Mini Grenade Launcher > --- INVENTORY -------- Heavy Ion Engine Light Deuterium Engine Improved Signal Interpreter Improved Utility Shielding Beam Rifle [Rating: 21] Favorites ----------- Power Light Ion Engine Engine Light Ion Engine Power Core Light Nuclear Core Propulsion Aluminum Leg Leg Aluminum Leg Wheel Wheel Utility Terrain Scan Processor Device Subdweller Optics Storage Medium Storage Unit Processor Terrain Scan Processor Weapon Improved Light Cannon Energy Gun Spread Laser Energy Cannon Heavy Particle Cannon Ballistic Gun Light Assault Rifle Ballistic Cannon Improved Light Cannon Launcher Mini Grenade Launcher Special Melee Weapon Datajack Build | -11 -10 -9 -8 ------- Run | Yrd Mat Mat Mat Slots Evolved 4 | . . 2 2 Power . | . . . . Propulsion 1 | . . 1 . Utility 2 | . . 1 1 Weapon 1 | . . . 1 Parts Attached 57 | 6 21 8 22 Power 12 | 1 5 1 5 Engine 11 | 1 5 1 4 Core 1 | . . . 1 Reactor . | . . . . Propulsion 16 | 2 6 1 7 Treads . | . . . . Leg 13 | 2 6 1 4 Wheel 3 | . . . 3 Hover . | . . . . Flight . | . . . . Utility 7 | 1 2 2 2 Device 2 | . . 2 . Storage 2 | 1 1 . . Processor 3 | . 1 . 2 Hackware . | . . . . Protection . | . . . . Artifact . | . . . . Weapon 22 | 2 8 4 8 Energy Gun 9 | 1 2 2 4 Energy Cannon 2 | . . 1 1 Ballistic Gun 5 | 1 4 . . Ballistic Cannon 2 | . 1 1 . Launcher 3 | . . . 3 Special Weapon . | . . . . Impact Weapon . | . . . . Slashing Weapon . | . . . . Piercing Weapon . | . . . . Special Melee Weapon 1 | . 1 . . Unidentified Prototypes 1 | . . . 1 Parts Lost 23 | . 6 . 17 Power 4 | . 2 . 2 Propulsion 9 | . 1 . 8 Utility 1 | . . . 1 Weapon 9 | . 3 . 6 Highest Loss Streak 10 | . 3 . 10 To Critical Strikes 1 | . . . 1 Average Slot Usage (%) 96 | . 98 99 91 Engine 11 | . 13 11 8 Leg 23 | . 27 32 11 Wheel 3 | . . . 10 Device 3 | . . 10 1 Storage 11 | . 14 11 9 Processor 16 | . 13 11 25 Energy Gun 9 | . 7 1 17 Ballistic Gun 7 | . 17 1 . Ballistic Cannon 7 | . 2 19 4 Naked Turns . | . . . . Heaviest Build 30 | 13 20 25 30 Greatest Support 36 | 20 20 30 36 Greatest Overweight (x) 6 | . 1 . 6 Average Overweight (x) . | . . . . Largest Inventory Capacity 10 | 8 10 10 10 Average Capacity 9 | 7 8 10 10 Most Carried 10 | 8 10 10 10 Average Carried 7 | 4 7 8 7 Final Capacity 10 | 8 10 10 10 Final Carried 10 | 6 10 10 5 Class Distribution -------------------- 40% | Scavenger-Mutant 31% | Mutant 23% | Scavenger-Skirmisher 4% | Scavenger-Gunner Dominant Class ---------------- Mutant | -10/Materials Scavenger-Mutant | -9/Materials Scavenger-Skirmisher | -8/Materials Resources | -11 -10 -9 -8 ----------- Run | Yrd Mat Mat Mat Matter Collected 1122 | 170 409 148 395 Remotely . | . . . . Salvage Created 1560 | . 558 115 887 Parts 111 | . 47 11 53 Haulers Intercepted 2 | . 2 . . Recyclers Shooed . | . . . . Parts Field Recycled . | . . . . Retrieved Matter . | . . . . Parts Self-Destructed . | . . . . Prevented . | . . . . Kills | -11 -10 -9 -8 ------- Run | Yrd Mat Mat Mat Combat Hostiles Destroyed 39 | . 14 6 19 Guns 24 | . 13 . 11 Cannons 9 | . 1 6 2 AOE 6 | . . . 6 Classes Destroyed 14 | . 6 1 7 Worker 1 | . . . 1 Builder 3 | . 1 . 2 Tunneler 2 | . . . 2 Hauler 2 | . 2 . . Recycler 1 | . . . 1 Mechanic 1 | . . . 1 Watcher 3 | . 1 . 2 Swarmer 12 | . 6 3 3 Grunt 15 | . 7 1 7 Duelist 1 | . . . 1 Sentry 7 | . . 2 5 Hunter 2 | . . . 2 Heavy 1 | . . . 1 Subdweller 1 | . 1 . . Best Kill Streak 6 | . 3 4 6 Combat Bots Only 4 | . 3 4 3 Max Kills in Single Turn 3 | . 1 2 3 Gunslinging . | . . . . Exploded 3 | . . . 3 Melee . | . . . . Uniques/NPCs Destroyed . | . . . . Combat | -11 -10 -9 -8 -------- Run | Yrd Mat Mat Mat Hostile Shots Fired 246 | . 99 27 120 Missed 56 | . 24 8 24 Damage Taken 3237 | . 1031 257 1949 Core 824 | . 228 46 550 Absorbed by Shields . | . . . . Core Remaining (%) 65 | 100 8 88 . Volleys Fired 138 | . 62 18 58 Largest 3 | . 2 2 3 Hottest 203 | . 65 114 203 Shots Fired 276 | . 114 36 126 Gun 195 | . 109 1 85 Cannon 72 | . 5 35 32 Launcher 9 | . . . 9 Special . | . . . . Kinetic 127 | . 75 33 19 Thermal 121 | . 20 3 98 Explosive 9 | . . . 9 Electromagnetic 19 | . 19 . . Robot Hit Streak 28 | . 23 28 8 Robot Miss Streak 8 | . 4 3 8 Penetration Max . | . . . . Secondary Targets 2 | . 1 . 1 Max Gunslinging Chain 1 | . 1 . 1 Shots Hit Robots 177 | . 87 19 71 Core Hits 116 | . 36 7 73 Critical Kills . | . . . . Critical Parts Destroyed . | . . . . Critical Strikes 5 | . 1 1 3 Burn 3 | . . . 3 Blast 2 | . 1 1 . Melee Attacks 3 | . 3 . . Impact . | . . . . Slashing . | . . . . Piercing . | . . . . Sneak Attacks . | . . . . Combat Hostiles . | . . . . Follow-up Attacks . | . . . . Damage Inflicted 3479 | . 940 417 2122 Guns 1675 | . 839 . 836 Cannons 858 | . 101 417 340 Explosions 946 | . . . 946 Melee . | . . . . Ramming . | . . . . Kinetic 1036 | . 529 367 140 Thermal 1301 | . 154 50 1097 Explosive 751 | . . . 751 Electromagnetic 391 | . 257 . 134 Impact . | . . . . Slashing . | . . . . Piercing . | . . . . Highest Corruption . | . . . . Average Corruption . | . . . . Corruption Purged . | . . . . Corruption Blocked . | . . . . Overload Shots . | . . . . Overflow Damage 103 | . . . 103 Projectiles 6 | . . . 6 Explosions 97 | . . . 97 Melee . | . . . . Knockbacks 3 | . 2 . 1 Impact . | . . . . Kinetic 3 | . 2 . 1 Secondary . | . . . . Self-Inflicted Damage 245 | . . . 245 Shots 6 | . . . 6 Rammed . | . . . . Targets Rammed 1 | . 1 . . Kicked 1 | . 1 . . Crushed . | . . . . Highest Temperature 407 | . 131 111 407 Average Temperature 85 | . 36 42 115 Received Heat Transfer 777 | . 297 66 414 Effects 3 | . . . 3 Shutdowns 1 | . . . 1 Energy Bleed 1 | . . . 1 Interference 1 | . . . 1 Siege Activations . | . . . . Robots Corrupted . | . . . . Combat Hostiles . | . . . . Parts Fried . | . . . . Impact Corruptions . | . . . . Robots Melted . | . . . . Combat Hostiles . | . . . . Parts Melted 7 | . 2 . 5 Heat Transferred 2712 | . 350 74 2288 Parts Sabotaged . | . . . . Parts Stolen . | . . . . Parts Stripped . | . . . . Power Chain Reactions 1 | . . . 1 Alert | -11 -10 -9 -8 ------- Run | Yrd Mat Mat Mat Peak Influence 419 | . 247 192 419 Initial 41 | . . 41 38 Average 125 | . 114 62 200 Maximum Alert Level 2 | . 1 . 2 Low Security (%) 76 | 100 81 100 48 Level 1 23 | . 18 . 50 Level 2 . | . . . 1 Level 3 . | . . . . Level 4 . | . . . . Level 5 . | . . . . High Security . | . . . . Max Security . | . . . . Squads Dispatched 8 | . 3 1 4 Investigation 4 | . 3 1 . Extermination . | . . . . Reinforcement 3 | . . . 3 Assault . | . . . . Garrison 1 | . . . 1 Intercept . | . . . . Searches Triggered . | . . . . Construction Impeded 1 | . . . 1 Haulers Reinforced . | . . . . Active Scanning Responses . | . . . . Cargo Convoy Interrupts . | . . . . Stealth | -11 -10 -9 -8 --------- Run | Yrd Mat Mat Mat Distress Signals 4 | . . . 4 Communications Jammed . | . . . . Distress Signals . | . . . . Times Spotted 59 | . 23 8 28 Peak Tracking Total 6 | . 3 4 6 Tactical Retreats 6 | . 5 . 1 Traps | -11 -10 -9 -8 ------- Run | Yrd Mat Mat Mat Traps Triggered 1 | . 1 . . Indirectly . | . . . . Trap Hack Attempts . | . . . . Triggered . | . . . . Disarmed . | . . . . Reprogrammed . | . . . . Reused . | . . . . Traps Extracted . | . . . . Installed . | . . . . Triggered . | . . . . Machines | -11 -10 -9 -8 ---------- Run | Yrd Mat Mat Mat Machines Disabled 8 | . . 2 6 Max in Single Turn 2 | . . 1 2 Machines Repaired . | . . . . Machines Dismantled . | . . . . Machines Sabotaged . | . . . . Overloaded Fab Kills . | . . . . Hacking | -11 -10 -9 -8 --------- Run | Yrd Mat Mat Mat Machines Accessed 12 | . 5 3 4 Terminals 9 | . 5 2 2 Fabricators . | . . . . Repair Stations . | . . . . Recycling Units 1 | . . . 1 Scanalyzers 2 | . . 1 1 Garrison Access . | . . . . Total Hacks 42 | . 13 14 15 Successful 31 | . 8 11 12 Failed 11 | . 5 3 3 Catastrophic 2 | . 1 1 . Database Lockouts . | . . . . Manual 14 | . 8 2 4 Terminals 25 | . 13 6 6 Fabricators . | . . . . Repair Stations . | . . . . Recycling Units 2 | . . . 2 Scanalyzers 15 | . . 8 7 Garrison Access . | . . . . Terminal Hacks 8 | . 4 2 2 Record 1 | . . 1 . Robot Analysis 1 | . 1 . . Alert Level 2 | . 1 . 1 Locate Traps 2 | . 1 1 . Zone Layout 2 | . 1 . 1 Fabricator Hacks . | . . . . Repair Station Hacks . | . . . . Recycling Unit Hacks 2 | . . . 2 Report Inventory 1 | . . . 1 Retrieve Components 1 | . . . 1 Scanalyzer 15 | . . 8 7 Insert Component 8 | . . 4 4 Analyze 7 | . . 4 3 Garrison Access Hacks . | . . . . Unauthorized Hacks 6 | . 4 1 1 Terminals 6 | . 4 1 1 Botnet 6 | . 4 1 1 Fabricators . | . . . . Repair Stations . | . . . . Recycling Units . | . . . . Scanalyzers . | . . . . Garrison Access . | . . . . Data Cores Recovered . | . . . . Used . | . . . . Hacking Detections 10 | . 4 2 4 Full Trace Events 2 | . 1 1 . Feedback Events . | . . . . Feedback Blocked . | . . . . Robot Schematics Acquired . | . . . . Robots Built . | . . . . Authchips . | . . . . Time . | . . . . Total Robot Build Rating . | . . . . Part Schematics Acquired 7 | . . 4 3 Parts Built . | . . . . Authchips . | . . . . Time . | . . . . Total Part Build Rating . | . . . . Parts Repaired . | . . . . Time . | . . . . Parts Recycled . | . . . . Recycled Matter . | . . . . Retrieved Matter . | . . . . Retrieved Components 10 | . . . 10 Parts Scanalyzed 7 | . . 4 3 Part Schematics Acquired 7 | . . 4 3 Parts Damaged 3 | . . 2 1 Bothacking | -11 -10 -9 -8 ------------ Run | Yrd Mat Mat Mat Used RIF Installer . | . . . . Robots Hacked 1 | . 1 . . Non-combat . | . . . . Combat 1 | . 1 . . Robot Hacks Applied 2 | . 2 . . parse_system 2 | . 2 . . Relay Couplers Released . | . . . . Fabnet Peak Effective % . | . . . . Robots Rewired . | . . . . Allies Hacked . | . . . . Hacks Repelled . | . . . . Allies | -11 -10 -9 -8 -------- Run | Yrd Mat Mat Mat Total Allies . | . . . . Largest Group . | . . . . Highest-Rated Group . | . . . . Highest-Rated Ally . | . . . . Total Orders . | . . . . Ally Attacks . | . . . . Total Damage . | . . . . Kills . | . . . . Allies Corrupted . | . . . . Allies Melted . | . . . . Intel | -11 -10 -9 -8 ------- Run | Yrd Mat Mat Mat Robot Analysis Total 1 | . 1 . . Derelict Logs Recovered . | . . . . Drone Launches . | . . . . Drone Recoveries . | . . . . Exploration | -11 -10 -9 -8 ------------- Run | Yrd Mat Mat Mat Turns Passed 2835 | 67 1158 719 891 Spaces Moved 1640 | 45 676 456 463 Core 18 | 8 . . 10 Treads . | . . . . Legs 1408 | 37 676 456 239 Wheels 214 | . . . 214 Hover . | . . . . Flight . | . . . . Fastest Speed 50 | 50 120 120 86 Average Speed 126 | 107 121 120 141 Slowest Speed 350 | 120 190 120 350 Overloaded Moves . | . . . . Propulsion Burnouts . | . . . . Robots Hopped . | . . . . Cave-ins Triggered . | . . . . Exploration Rate (%) 33 | 5 70 27 31 Regions Visited 3 Branch Regions . Pre-discovered Areas . | . . . . Known Exits Taken . | . . . . Unknown Exits Taken 3 | 1 1 1 . Scrap Searched . | . . . . Spaces Dug 27 | . . . 27 Terrain Destroyed 111 | . . 2 109 Melee . | . . . . Projectile 5 | . . 2 3 AOE 106 | . . . 106 Terrain Rammed . | . . . . Walls Destroyed . | . . . . Machines Disabled . | . . . . Actions | -11 -10 -9 -8 --------- Run | Yrd Mat Mat Mat Total 2170 | 63 916 592 599 Wait 229 | 1 102 95 31 Move 1637 | 44 675 455 463 Hop . | . . . . Pick Up 65 | 12 27 9 17 Fast Attach 3 | . 3 . . Attach 31 | 6 9 2 14 Detach 1 | . 1 . . Swap 23 | . 9 6 8 Drop 39 | . 24 7 8 Fire 138 | . 62 18 58 Melee 3 | . 3 . . Ram . | . . . . Kick 1 | . 1 . . Crush . | . . . . Escape Stasis . | . . . . Rewire . | . . . . Trap . | . . . . Miscellaneous . | . . . . Route ------- -11/Scrapyard -10/Materials (discovered 3 exits: *Mat x2 / [*Min]) -9/Materials -8/Materials History --------- Turn | Location | Event 15 | -11/Scrapyard | Discovered new exit (range 15) 68 | -11/Scrapyard | Entered Materials 270 | -10/Materials | Discovered new exit (range 6) 311 | -10/Materials | Build established: Mutant 668 | -10/Materials | Derelicts attacked the area 870 | -10/Materials | Core integrity fell below 50% 969 | -10/Materials | Core integrity fell below 20% 989 | -10/Materials | Lost 3 parts (1p1n1w) 1091 | -10/Materials | Discovered new exit (range 15) 1202 | -10/Materials | Discovered new exit (range 12) 1226 | -10/Materials | Entered another Materials area 1226 | -9/Materials | Evolved 2 slots: Propulsion x1, Utility x1 1301 | -9/Materials | Build established: Scavenger-Mutant 1763 | -9/Materials | Discovered new exit (range 21) 1945 | -9/Materials | Entered another Materials area 1945 | -8/Materials | Evolved 2 slots: Utility x1, Weapon x1 2077 | -8/Materials | Lost 3 parts (1p1n1u) 2354 | -8/Materials | Build established: Scavenger-Skirmisher 2698 | -8/Materials | Garrison activated, responded to threat 2757 | -8/Materials | Core integrity fell below 50% 2802 | -8/Materials | Core integrity fell below 20% 2811 | -8/Materials | Lost 10 parts (1p4n5w) 2836 | -8/Materials | Destroyed by G-47 Trooper with Particle Gun Last Messages --------------- 02804_ Penetrated by Slug. 02805_ U-05 Engineer lays Concrete. 02807_ Penetrated by Slug. 02808_ U-05 Engineer lays Concrete. 02810_ Penetrated by Slug. 02812_ U-05 Engineer lays Concrete. 02813_ Carbon-fiber Leg melted. 02813_ H-55 Commando destroyed. 02814_ Fusion Modulator explodes. 02814_ U-05 Engineer destroyed. 02814_ U-05 Engineer lays Concrete. 02818_ Acquired 26 matter. 02819_ U-05 Engineer lays Concrete. 02824_ U-05 Engineer builds a Wall. 02825_ Acquired Lgt. Nuclear Core. 02828_ U-05 Engineer lays Concrete. 02830_ U-05 Engineer builds a Wall. 02832_ G-47 Trooper suffers critical hit (Burn). 02834_ U-05 Engineer builds a Wall. 02835_ U-05 Engineer lays Concrete. Map ----- +----------------------------------------------------+ | ?????????????????????????????????????????????????? | | ?????????????????????????????????????????????????? | | ?????????????????????????????????????????????????? | | ?????????????????????????????????????????????????? | | ?????????????????????????????????????????????????? | | ?????????????????????????????????????????????????? | | ???????????a?????????????????????????????????????? | | ?????????????????????????????????????????????????? | | ???????????????????????? ????????????????????????? | | ????????????a?????????# ???????????????????????? | | ??????????????????????# ???????????????????????? | | ??????????????????????# ######+####?? ?????????? | | ??????????????????????# # ## ?????????? | | ??????????????????????# ;! =" ????????? | | ??????????????????????# ; ; ????????? | | ??????????????????????# ; ; [ ???????? | | ??????????????????????# ; "%= ????????? | | ????? ???????????????# ; " ? ???????? | | ?????"T???????????????# ; "# #????????? | | ???? ""???????????????# ; "" #????????? | | ???? ????????????????# ; ""#???????????? | | ??? ?????????????????# ### ""#???????????? | | +## ??????????????????# u #???????????? | | ??????????????????# % #???????????? | | ?#####?????????????# % !#???????????? | | ? ??????????????# @# #???????????? | | +##### #??????????????#^^%+ #???????????? | | # # #?????????????## ############???????????? | | ## #?????????????## %g## #???????????? | | # #?????????????#; ## #???????????? | | !==# # #?????????????# r%# #???????????? | | !%*# # ###???????????# %!# #???????????? | | "[[#= #???????????# g=%+ #???????????? | | " %# ############# = # """ """ #???????????? | | ""[+! = * """ """?????????????? | | *# ############# * """ ""??????????????? | | #### #??????????? #######??????????????? | | #??###+"###?????????" #%= #????????????????????? | | #??# #????????"" /u ????????????????????? | | #??# #???????""" # #???????????????????? | | #### #??????? ##???????????????????? | | + "" #????????] ????????????????????? | | #### S"" #???????#### # "????????????????????? | | #??# "" #??????????# =* ""???????????????????? | | #??########?????????? %=* ????????????????????? | | #????????????????????# [ ????????????????????? | | #???????????????????? = ? ????????????????????? | | #????????????????????? ?????????????????????? | | #?????????????????????# ??????????????????????? | | ##????????????????????? ???????????????????????? | +----------------------------------------------------+ Best States ------------- Heat Dissipation 53 Energy Generation 14 Energy Capacity 280 Matter Stores 300 Matter Capacity 300 Sight Range 21 Terrain Scan Density 85 Evasion (%) 55 Item Schematics ----------------- Imp. Signal Interpreter | -9/Materials | Scanalyzed ECM Suite | -9/Materials | Scanalyzed Hvy. Particle Cannon | -9/Materials | Scanalyzed Ion Engine | -9/Materials | Scanalyzed VSS Leg | -8/Materials | Scanalyzed Hvy. Ion Engine | -8/Materials | Scanalyzed Lgt. Deuterium Engine | -8/Materials | Scanalyzed Robot Schematics ------------------ None Fabricated ------------ Nothing Alien Tech Used ----------------- None Achievements -------------- None Challenges ------------ None Game ------ Seed StasisHellfireFalx Manual? 0 Play Time 01:19:26 Cumulative 18.6 hours Start 2024.05.18 @ 00:37:26 End 2024.05.22 @ 18:53:15 Sessions 6 Manual Loads 0 Difficulty Rogue Special Mode None Game No. 24 Rogue 24 Adventurer 0 Explorer 0 Win Type - Total 0 Types 0/0/0/0/0/0/0/0/0 Lore% 6 Gallery% 19 Achievement% 17 Wizard Run 0 Options --------- Layout 1 ASCII 0 Keyboard 1 Movement Numpad Keybinds 0 Fullscreen 1 Font 24/Crisp Map View 50x35 Zoom Use 0% Tactical HUD 1 Map Filters NONE Filters NONE Steam 1 RUN: 34438a59-86f2-4fa7-bfca-c04afa6a7919